bitfinex/quotes_BTCUSD_20240717
["timestamp","ask_amount","ask_price","bid_price","bid_amount"]
[1721240514601,0.02224851,64539.0,64538.0,0.28370147]
[1721240514771,0.01124851,64539.0,64538.0,0.34490147]
[1721240514974,0.00083,64539.0,64538.0,0.34490147]
[1721240515180,0.01183,64539.0,64538.0,0.34690147]
[1721240515336,0.01183,64539.0,64538.0,0.50028321]
[1721240515540,0.00683,64539.0,64538.0,0.65423021]
[1721240515741,0.00683,64539.0,64538.0,1.27601821]
[1721240515989,0.00083,64539.0,64538.0,1.28101821]
[1721240516219,0.00083,64539.0,64538.0,1.59091221]
[1721240516469,0.108674,64542.0,64541.0,0.7747]
[1721240516641,0.108674,64542.0,64541.0,1.74341568]
[1721240516864,0.108674,64542.0,64541.0,2.05329568]
[1721240517531,0.108674,64542.0,64541.0,2.05316871]
[1721240517886,0.109674,64542.0,64541.0,2.06716934]
[1721240518293,0.109674,64542.0,64541.0,2.08116934]
[1721240519098,0.109674,64542.0,64541.0,2.39104934]
[1721240519099,0.026374,64542.0,64541.0,2.39104934]
[1721240520069,0.026374,64542.0,64541.0,2.44104934]
[1721240520367,0.00244216,64554.0,64541.0,2.44104934]
[1721240520368,0.00244216,64554.0,64553.0,1.084377]
[1721240520627,0.00835,64557.0,64554.0,0.464727]
[1721240520878,0.00835,64557.0,64554.0,1.05752063]
[1721240522200,1.05316556,64555.0,64554.0,1.08552063]
[1721240522805,1.05316556,64555.0,64554.0,0.95692674]
[1721240523006,1.05316556,64555.0,64554.0,0.77570034]
[1721240523268,1.05316556,64555.0,64554.0,0.46588234]
[1721240523497,1.05216556,64555.0,64554.0,0.45188234]
[1721240523701,1.05216556,64555.0,64554.0,0.76170034]
[1721240523833,1.05316556,64555.0,64554.0,0.77570034]
[1721240524040,1.05316556,64555.0,64554.0,0.74770034]
[1721240524262,1.05316556,64555.0,64554.0,0.76170034]
[1721240524463,1.05316556,64555.0,64554.0,0.77570034]
[1721240524464,1.05416556,64555.0,64554.0,0.77570034]
[1721240524678,1.05416556,64555.0,64554.0,0.76170034]
[1721240524679,1.05216556,64555.0,64554.0,0.76170034]
[1721240524881,1.05216556,64555.0,64554.0,1.07151834]
[1721240525919,1.05216556,64555.0,64554.0,0.94292674]
[1721240526116,1.05216556,64555.0,64554.0,1.07152494]
[1721240526782,1.05316556,64555.0,64554.0,1.08552494]
[1721240527728,1.05316556,64555.0,64554.0,1.14755594]
[1721240529234,1.06209743,64555.0,64554.0,1.14755584]
[1721240532430,1.06209743,64555.0,64554.0,1.14755526]
[1721240533196,1.06209743,64555.0,64554.0,2.46574805]
[1721240533397,1.06209743,64555.0,64554.0,2.73614805]
[1721240533620,1.06209743,64555.0,64554.0,2.65897326]
[1721240534373,1.06209743,64555.0,64554.0,1.94897326]
[1721240535379,1.06209743,64555.0,64554.0,1.82037574]
[1721240535556,1.06209743,64555.0,64554.0,1.94896409]
[1721240535934,1.06209743,64555.0,64554.0,1.94896395]
[1721240538648,1.06209743,64555.0,64554.0,1.94896369]
[1721240539177,1.06209743,64555.0,64554.0,0.37300069]
[1721240540045,1.06209743,64555.0,64554.0,0.24441274]
[1721240540268,1.29230343,64555.0,64554.0,0.014]
[1721240540490,1.29230343,64555.0,64554.0,0.028]
[1721240540491,1.35590343,64555.0,64554.0,0.028]
[1721240540668,1.66571643,64555.0,64554.0,0.028]
[1721240540849,1.66571643,64555.0,64554.0,0.014]
[1721240540850,2.28434243,64555.0,64554.0,0.014]
[1721240541045,1.06109743,64555.0,64546.0,0.2]
[1721240541254,0.00244216,64554.0,64547.0,0.28301427]
[1721240541449,0.00244216,64554.0,64548.0,0.12863154]
[1721240541652,0.00244216,64554.0,64549.0,0.28300869]
[1721240541653,0.0089625,64553.0,64549.0,0.28300869]
[1721240541894,0.0089625,64553.0,64550.0,0.43846295]
[1721240542097,0.0089625,64553.0,64551.0,0.28300869]
[1721240542306,0.0089625,64553.0,64552.0,0.12862695]
[1721240542511,0.0089625,64553.0,64552.0,0.28300869]
[1721240542885,1.05216556,64555.0,64552.0,0.28300869]
[1721240543090,1.05216556,64555.0,64553.0,0.28300869]
[1721240543305,1.05216556,64555.0,64554.0,0.12862695]
[1721240543473,1.05416556,64555.0,64554.0,0.74773569]
[1721240543840,1.05416556,64555.0,64554.0,0.64933564]
[1721240544022,1.05216556,64555.0,64554.0,0.64933564]
[1721240544218,1.06106533,64555.0,64554.0,0.63082369]
[1721240544626,1.06106533,64555.0,64554.0,1.31845969]
[1721240544828,1.06106533,64555.0,64554.0,1.31841891]
[1721240545037,1.06106533,64555.0,64554.0,1.32641891]
[1721240545038,1.06206533,64555.0,64554.0,1.32641891]
[1721240545246,1.06206533,64555.0,64554.0,1.3404302]
[1721240545247,1.06306533,64555.0,64554.0,1.3404302]
[1721240545406,1.06306533,64555.0,64554.0,1.3264302]
[1721240545798,1.06306533,64555.0,64554.0,1.3404302]
[1721240546007,1.06406533,64555.0,64554.0,1.3404302]
[1721240546228,1.06406533,64555.0,64554.0,0.6587942]
[1721240546446,1.06306533,64555.0,64554.0,0.6447942]
[1721240546776,1.06306533,64555.0,64554.0,0.5038852]
[1721240547184,1.13656533,64555.0,64554.0,0.4898852]
[1721240547425,1.13756533,64555.0,64554.0,0.5038852]
[1721240547810,1.13656533,64555.0,64554.0,0.16838174]
[1721240548066,1.13756533,64555.0,64554.0,0.5039135]
[1721240548228,1.13756533,64555.0,64554.0,0.1566127]
[1721240549613,1.13756533,64555.0,64554.0,0.1426127]
[1721240550035,1.13656533,64555.0,64554.0,0.1426127]
[1721240550523,1.13756533,64555.0,64554.0,0.1426127]
[1721240550634,1.13756533,64555.0,64554.0,0.1286127]
[1721240550837,1.13756533,64555.0,64554.0,0.009]
[1721240551050,1.13756533,64555.0,64554.0,0.1486177]
[1721240551051,1.13856533,64555.0,64554.0,0.1486177]
[1721240551290,1.13856533,64555.0,64554.0,0.1396177]
[1721240551687,1.13856533,64555.0,64554.0,0.1496177]
[1721240553055,1.13856533,64555.0,64554.0,0.0587177]
[1721240553978,1.13856533,64555.0,64554.0,0.021]
[1721240556260,1.06306533,64555.0,64554.0,0.17538174]
[1721240561305,1.06306533,64555.0,64554.0,0.33029074]
[1721240561512,1.06306533,64555.0,64554.0,0.64010874]
[1721240561720,1.06306533,64555.0,64554.0,1.16134837]
[1721240562299,1.06306533,64555.0,64554.0,1.20748635]
[1721240562711,1.06306533,64555.0,64554.0,0.94992674]
[1721240563280,1.06306533,64555.0,64554.0,1.07853389]
[1721240563481,1.06306533,64555.0,64554.0,1.33609928]
[1721240564041,1.06306533,64555.0,64554.0,1.336087]
[1721240564249,1.06306533,64555.0,64554.0,0.30398445]
[1721240564658,0.06306533,64555.0,64554.0,0.30398445]
[1721240564836,0.05416556,64555.0,64554.0,0.30398445]
[1721240565038,0.05416556,64555.0,64554.0,0.17538174]
[1721240565239,0.05416556,64555.0,64554.0,0.30399085]
[1721240566611,0.05416556,64555.0,64554.0,0.17538174]
[1721240566760,0.05416556,64555.0,64554.0,0.30399787]
[1721240569981,0.05416556,64555.0,64554.0,0.3039898]
[1721240573457,0.05416556,64555.0,64554.0,0.17538174]
[1721240573666,0.05416556,64555.0,64554.0,0.30398783]
[1721240574114,0.05416556,64555.0,64554.0,0.35815383]
[1721240576003,0.05416556,64555.0,64554.0,0.35906683]
[1721240576434,0.05216556,64555.0,64554.0,0.34806683]
[1721240576632,0.05216556,64555.0,64554.0,0.35206683]
[1721240577016,0.20096556,64555.0,64554.0,0.36606683]
[1721240577242,0.36334095,64555.0,64554.0,0.31190083]
[1721240578015,0.36334095,64555.0,64554.0,0.29790083]
[1721240578421,0.36334095,64555.0,64554.0,0.30690083]
[1721240578649,0.67315395,64555.0,64554.0,0.30690083]
[1721240579300,0.67315395,64555.0,64554.0,0.17829474]
[1721240579499,0.67315395,64555.0,64554.0,0.16429474]
[1721240579711,0.67315395,64555.0,64554.0,0.16729474]
[1721240580034,0.67315395,64555.0,64554.0,0.16529474]
[1721240580240,0.67315395,64555.0,64554.0,0.17729474]
[1721240580637,0.67315395,64555.0,64554.0,0.16729474]
[1721240581205,0.67315395,64555.0,64554.0,0.17829474]
[1721240582647,0.20843495,64555.0,64554.0,0.306922]
[1721240582846,0.05963495,64555.0,64554.0,0.306922]
[1721240583033,0.05216556,64555.0,64554.0,0.306922]
[1721240583228,0.05959182,64555.0,64554.0,0.306922]
[1721240584747,0.05959182,64555.0,64554.0,0.30690674]
[1721240584951,0.05959182,64555.0,64554.0,0.30690381]
[1721240584952,0.05216556,64555.0,64554.0,0.30690381]
[1721240585389,0.05216556,64555.0,64554.0,0.46181281]
[1721240586046,0.05216556,64555.0,64554.0,0.45081281]
[1721240586207,0.05216556,64555.0,64554.0,0.43881281]
[1721240586409,0.05216556,64555.0,64554.0,0.46681281]
[1721240586813,0.05216556,64555.0,64554.0,0.45281281]
[1721240587222,0.05216556,64555.0,64554.0,0.60871281]
[1721240587876,0.05216556,64555.0,64554.0,0.48010374]
[1721240588026,0.05216556,64555.0,64554.0,1.12992581]
[1721240588227,0.05216556,64555.0,64554.0,1.11142134]
[1721240588460,0.05216556,64555.0,64554.0,1.12992608]
[1721240588664,0.05216556,64555.0,64554.0,1.46741779]
[1721240588861,0.05216556,64555.0,64554.0,2.26670136]
[1721240589243,0.05216556,64555.0,64554.0,1.92332502]
[1721240590403,0.05216556,64555.0,64554.0,1.85405734]
[1721240590963,0.05216556,64555.0,64554.0,3.35405734]
[1721240591146,0.05216556,64555.0,64554.0,3.35403587]
[1721240591569,0.05216556,64555.0,64554.0,3.35403621]
[1721240592407,0.05216556,64555.0,64554.0,3.34003621]
[1721240592572,0.05216556,64555.0,64554.0,3.35403621]
[1721240592772,0.05216556,64555.0,64554.0,3.34003589]
[1721240592972,0.05216556,64555.0,64554.0,1.85403589]
[1721240593185,0.05216556,64555.0,64554.0,1.84003589]
[1721240593383,0.05216556,64555.0,64554.0,1.88619467]
[1721240593594,0.05216556,64555.0,64554.0,1.85403589]
[1721240594006,0.05216556,64555.0,64554.0,1.90019428]
[1721240594312,0.05216556,64555.0,64554.0,1.90019344]
[1721240595477,0.05216556,64555.0,64554.0,1.88619344]
[1721240595677,0.05216556,64555.0,64554.0,1.90019344]
[1721240595882,0.05216556,64555.0,64554.0,1.88619344]
[1721240596105,0.05216556,64555.0,64554.0,1.90019344]
[1721240597093,0.05216556,64555.0,64554.0,1.70730677]
[1721240597299,0.05216556,64555.0,64554.0,1.90019344]
[1721240597649,0.05216556,64555.0,64554.0,1.70731735]
[1721240597824,0.05216556,64555.0,64554.0,1.90020363]
[1721240597995,0.05216556,64555.0,64554.0,1.70731735]
[1721240598197,0.05216556,64555.0,64554.0,1.90020363]
[1721240598398,0.05216556,64555.0,64554.0,1.70731735]
[1721240598577,0.05216556,64555.0,64554.0,1.90020363]
[1721240600483,0.05216556,64555.0,64554.0,1.70731735]
[1721240600617,0.05216556,64555.0,64554.0,1.90020797]
[1721240601065,0.05216556,64555.0,64554.0,1.77162364]
[1721240601360,0.05216556,64555.0,64554.0,1.90021382]
[1721240601782,0.05216556,64555.0,64554.0,1.90021506]
[1721240601917,0.05216556,64555.0,64554.0,1.88621506]
[1721240602373,0.05216556,64555.0,64554.0,1.69332772]
[1721240602726,0.05216556,64555.0,64554.0,1.70732772]
[1721240603161,0.05216556,64555.0,64554.0,1.90021279]
[1721240603369,0.05216556,64555.0,64554.0,1.70732772]
[1721240603575,0.05216556,64555.0,64554.0,1.66114778]
[1721240604032,0.05216556,64555.0,64554.0,1.85402882]
[1721240604259,0.05216556,64555.0,64554.0,1.92330769]
[1721240604476,0.05216556,64555.0,64554.0,2.50720562]
[1721240604683,0.05216556,64555.0,64554.0,3.30957745]
[1721240604885,0.05216556,64555.0,64554.0,3.37386929]
[1721240605426,0.05216556,64555.0,64554.0,3.30957745]
[1721240605592,0.05216556,64555.0,64554.0,3.29557745]
[1721240605962,0.05216556,64555.0,64554.0,2.56246225]
[1721240606565,0.05216556,64555.0,64554.0,2.04021866]
[1721240606758,0.05216556,64555.0,64554.0,2.21909809]
[1721240606954,0.05216556,64555.0,64554.0,1.91163237]
[1721240607196,0.05216556,64555.0,64554.0,2.04021672]
[1721240607399,0.05216556,64555.0,64554.0,2.23309817]
[1721240607608,0.05216556,64555.0,64554.0,3.73309817]
[1721240608971,0.05216556,64555.0,64554.0,4.77720384]
[1721240609171,0.05216556,64555.0,64554.0,4.98383269]
[1721240609370,0.05216556,64555.0,64554.0,4.89646386]
[1721240609590,0.05216556,64555.0,64554.0,4.96075664]
[1721240609935,0.05216556,64555.0,64554.0,4.89149662]
[1721240610262,0.05216556,64555.0,64554.0,4.89148827]
[1721240610462,0.05216556,64555.0,64554.0,4.9607541]
[1721240610664,0.05216556,64555.0,64554.0,4.63929578]
[1721240610866,0.05216556,64555.0,64554.0,4.9607597]
[1721240611021,0.05216556,64555.0,64554.0,4.9107597]
[1721240611223,0.05216556,64555.0,64554.0,4.1407597]
[1721240612749,0.05216556,64555.0,64554.0,2.6407597]
[1721240613334,0.05216556,64555.0,64554.0,2.64077385]
[1721240614280,0.05216556,64555.0,64554.0,2.80150532]
[1721240615024,0.05216556,64555.0,64554.0,2.00310721]
[1721240615225,0.05216556,64555.0,64554.0,2.80150677]
[1721240615919,0.05216556,64555.0,64554.0,1.82260699]
[1721240616121,0.05216556,64555.0,64554.0,1.46659531]
[1721240616645,0.05216556,64555.0,64554.0,1.15680515]
[1721240616849,0.05216556,64555.0,64554.0,0.84698715]
[1721240617016,0.05216556,64555.0,64554.0,0.83298715]
[1721240617341,0.05216556,64555.0,64554.0,1.14280515]
[1721240617710,0.05216556,64555.0,64554.0,1.12880515]
[1721240617908,0.05216556,64555.0,64554.0,1.14280515]
[1721240618423,0.05216556,64555.0,64554.0,1.15680515]
[1721240618967,0.05216556,64555.0,64554.0,1.12880515]
[1721240619331,0.05216556,64555.0,64554.0,1.46662315]
[1721240619531,0.05216556,64555.0,64554.0,1.69814392]
[1721240619732,0.05216556,64555.0,64554.0,1.76244061]
[1721240619938,0.05216556,64555.0,64554.0,1.74844061]
[1721240620133,0.05216556,64555.0,64554.0,1.76244094]
[1721240620832,0.05216556,64555.0,64554.0,1.77644094]
[1721240621201,0.05216556,64555.0,64554.0,1.77644022]
[1721240621400,0.05055903,64555.0,64554.0,1.76244022]
[1721240621621,0.05055903,64555.0,64554.0,1.77644022]
[1721240622135,0.05055903,64555.0,64554.0,1.76244022]
[1721240622523,0.05055903,64555.0,64554.0,1.77644022]
[1721240622765,0.05055903,64555.0,64554.0,2.08625747]
[1721240623127,0.05055903,64555.0,64554.0,2.13245713]
[1721240623335,0.05055903,64555.0,64554.0,2.29766093]
[1721240624298,0.05055903,64555.0,64554.0,2.14895747]
[1721240624452,0.05055903,64555.0,64554.0,2.21826093]
[1721240624656,0.05055903,64555.0,64554.0,2.08625747]
[1721240625997,0.05055903,64555.0,64554.0,2.42962297]
[1721240626227,0.05055903,64555.0,64554.0,2.42961287]
[1721240626430,0.05055903,64555.0,64554.0,2.49895502]
[1721240626832,0.05055903,64555.0,64554.0,2.42961287]
[1721240627203,0.05055903,64555.0,64554.0,2.52209651]
[1721240627700,0.05055903,64555.0,64554.0,2.49409651]
[1721240628038,0.05055903,64555.0,64554.0,2.52209651]
[1721240628199,0.05055903,64555.0,64554.0,2.41561287]
[1721240628536,0.05055903,64555.0,64554.0,2.42961287]
[1721240628748,0.05055903,64555.0,64554.0,2.41561287]
[1721240628953,0.05055903,64555.0,64554.0,2.42961287]
[1721240629158,0.05055903,64555.0,64554.0,2.23544474]
[1721240629361,0.05055903,64555.0,64554.0,2.11979643]
[1721240629567,0.05055903,64555.0,64554.0,1.39065774]
[1721240629726,0.05055903,64555.0,64554.0,3.61979607]
[1721240630343,0.05055903,64555.0,64554.0,3.70829607]
[1721240630545,0.05055903,64555.0,64554.0,3.69429607]
[1721240630753,0.05055903,64555.0,64554.0,3.6942968]
[1721240630951,0.05055903,64555.0,64554.0,3.7082968]
[1721240631355,0.05055903,64555.0,64554.0,3.6942968]
[1721240631553,0.18735903,64555.0,64554.0,3.5917968]
[1721240631813,0.18735903,64555.0,64554.0,1.7959788]
[1721240632002,0.18735903,64555.0,64554.0,1.7729788]
[1721240632213,0.18735903,64555.0,64554.0,1.78698391]
[1721240632611,0.18735903,64555.0,64554.0,1.47716591]
[1721240632766,0.18735903,64555.0,64554.0,1.59292305]
[1721240635332,0.18735903,64555.0,64554.0,1.06949754]
[1721240635503,0.18735903,64555.0,64554.0,1.59294873]
[1721240636317,0.18735903,64555.0,64554.0,1.12822173]
[1721240636517,0.18735903,64555.0,64554.0,1.1050765]
[1721240636931,0.18735903,64555.0,64554.0,1.0407798]
[1721240637129,0.18735903,64555.0,64554.0,1.0267798]
[1721240637534,0.18735903,64555.0,64554.0,0.94815198]
[1721240637905,0.18735903,64555.0,64554.0,1.00362519]
[1721240638109,0.18735903,64555.0,64554.0,0.64624375]
[1721240638337,0.18735903,64555.0,64554.0,0.60477054]
[1721240638537,0.18735903,64555.0,64554.0,0.60480161]
[1721240638701,0.18735903,64555.0,64554.0,0.59080161]
[1721240638897,0.18735903,64555.0,64554.0,0.60480294]
[1721240639779,0.18735903,64555.0,64554.0,0.59080294]
[1721240640305,0.18735903,64555.0,64554.0,0.60480294]
[1721240640502,0.18735903,64555.0,64554.0,0.65111278]
[1721240640651,0.18735903,64555.0,64554.0,0.62311278]
[1721240640831,0.18735903,64555.0,64554.0,0.63711278]
[1721240641036,0.18735903,64555.0,64554.0,0.32960591]
[1721240641239,0.18735903,64555.0,64554.0,0.65111478]
[1721240642474,0.18735903,64555.0,64554.0,0.55111478]
[1721240642675,0.3481203,64555.0,64554.0,0.31189829]
[1721240643598,0.5030263,64555.0,64554.0,0.31189829]
[1721240644025,1.1226523,64555.0,64554.0,0.15753519]
[1721240644250,1.1226523,64555.0,64541.0,0.06946676]
[1721240644251,0.774675,64543.0,64538.0,0.09489847]
[1721240644465,0.85436627,64543.0,64538.0,0.13839875]
[1721240644581,0.76592048,64543.0,64538.0,0.13839875]
[1721240644788,0.76592048,64543.0,64538.0,0.07634775]
[1721240645002,1.16429048,64543.0,64538.0,0.07634775]
[1721240645212,1.71540983,64543.0,64538.0,0.07634775]
[1721240645437,1.52416048,64543.0,64538.0,0.07634775]
[1721240645826,1.52416048,64543.0,64542.0,0.014913]
[1721240645827,1.7154242,64543.0,64542.0,0.014913]
[1721240646236,0.30111548,64543.0,64542.0,0.014913]
[1721240646605,0.30111548,64543.0,64542.0,0.16929474]
[1721240646979,0.30111548,64543.0,64542.0,0.15529474]
[1721240647355,0.30811548,64543.0,64542.0,0.16129474]
[1721240647729,0.30811548,64543.0,64542.0,0.15629474]
[1721240647914,0.30211548,64543.0,64542.0,0.16329474]
[1721240648225,0.30311548,64543.0,64542.0,0.16329474]
[1721240648386,0.1433,64543.0,64542.0,0.17329474]
[1721240655239,0.1413,64543.0,64542.0,0.16329474]
[1721240655481,0.1413,64543.0,64542.0,0.16629474]
[1721240655903,0.1423,64543.0,64542.0,0.17529474]
[1721240660198,0.002,64543.0,64542.0,1.25985674]
[1721240660405,0.002,64543.0,64542.0,1.38849152]
[1721240660659,0.002,64543.0,64542.0,1.45409152]
[1721240660858,0.002,64543.0,64542.0,1.47709152]
[1721240661184,0.001,64543.0,64542.0,1.46807835]
[1721240661719,0.00244216,64554.0,64544.0,0.2]
[1721240661929,0.0774,64553.0,64545.0,0.28300454]
[1721240662124,0.0647,64552.0,64546.0,0.1286228]
[1721240662325,0.0647,64552.0,64547.0,0.28300454]
[1721240662565,0.0647,64552.0,64548.0,0.1286228]
[1721240662771,0.0647,64552.0,64549.0,0.15438174]
[1721240663834,0.0647,64552.0,64549.0,0.10898174]
[1721240664062,0.0647,64552.0,64549.0,0.12298174]
[1721240664237,0.0647,64552.0,64550.0,0.12862306]
[1721240664586,0.0647,64552.0,64549.0,0.12298174]
[1721240664587,0.0647,64552.0,64551.0,0.15438174]
[1721240666261,0.0647,64552.0,64551.0,0.2970048]
[1721240666582,0.0647,64552.0,64551.0,0.29700474]
[1721240667216,0.0647,64552.0,64551.0,0.31100474]
[1721240669136,0.0647,64552.0,64551.0,0.31100482]
[1721240671100,0.0647,64552.0,64551.0,0.15662308]
[1721240672313,0.0647,64552.0,64551.0,0.15662326]
[1721240674409,0.0647,64552.0,64551.0,0.028]
[1721240674410,0.23019169,64552.0,64551.0,0.028]
[1721240675110,0.47370469,64552.0,64551.0,0.028]
[1721240675410,0.78353169,64552.0,64551.0,0.028]
[1721240675584,0.78353169,64552.0,64551.0,0.018]
[1721240675789,1.09335869,64552.0,64551.0,0.018]
[1721240675989,1.09335869,64552.0,64551.0,0.014]
[1721240676309,1.00475869,64552.0,64551.0,0.021]
[1721240676614,0.0802,64547.0,64542.0,0.000913]
[1721240676815,0.15109169,64546.0,64543.0,0.12864523]
[1721240677012,0.08859169,64545.0,64542.0,0.000913]
[1721240677210,0.08859169,64545.0,64543.0,0.1286451]
[1721240677436,0.08859169,64545.0,64542.0,0.000913]
[1721240677681,0.08859169,64545.0,64543.0,0.1286451]
[1721240677872,0.08859169,64545.0,64542.0,0.000913]
[1721240678078,0.08859169,64545.0,64543.0,0.1286451]
[1721240678291,0.08859169,64545.0,64542.0,0.000913]
[1721240678508,0.08959169,64545.0,64543.0,0.007]
[1721240678713,0.08959169,64545.0,64543.0,0.012]
[1721240678924,0.08959169,64545.0,64543.0,0.007]
[1721240679397,0.09059169,64545.0,64543.0,0.014]
[1721240679843,0.141,64544.0,64543.0,0.014]
[1721240680054,0.22959169,64544.0,64543.0,0.13564502]
[1721240681016,0.23059169,64544.0,64543.0,0.14364502]
[1721240681446,0.23059169,64544.0,64543.0,0.29102676]
[1721240681447,0.08959169,64544.0,64543.0,0.29102676]
[1721240681646,0.002,64544.0,64543.0,0.32031674]
[1721240681846,0.002,64544.0,64543.0,0.29401827]
[1721240682418,0.002,64544.0,64543.0,0.75882327]
[1721240682637,0.002,64544.0,64543.0,0.82092327]
[1721240685269,0.002,64544.0,64543.0,0.69228674]
[1721240685491,0.002,64544.0,64543.0,0.82091956]
[1721240686299,0.002,64544.0,64543.0,0.75881956]
[1721240686502,0.002,64544.0,64543.0,0.44895336]
[1721240688133,0.002,64544.0,64543.0,0.44895397]
[1721240688670,0.002,64544.0,64543.0,0.29401897]
[1721240688874,0.1461,64544.0,64543.0,0.13963723]
[1721240689111,0.066,64544.0,64543.0,0.13963723]
[1721240689513,0.07805985,64544.0,64543.0,0.13963723]
[1721240691125,0.07805985,64544.0,64543.0,0.011]
[1721240691331,0.07805985,64544.0,64543.0,0.13963849]
[1721240693082,0.01405985,64544.0,64543.0,0.13963849]
[1721240694502,0.01405985,64544.0,64543.0,0.13963847]
[1721240697566,0.01405985,64544.0,64543.0,0.011]
[1721240697567,0.09485985,64544.0,64543.0,0.011]
[1721240697718,0.09485985,64544.0,64543.0,0.13964125]
[1721240697886,0.09485985,64544.0,64543.0,0.13464125]
[1721240698086,0.15875985,64544.0,64543.0,0.13464125]
[1721240700601,0.15875985,64544.0,64543.0,0.13464209]
[1721240701803,0.01405985,64544.0,64543.0,0.13464209]
[1721240702536,0.01405985,64544.0,64543.0,0.81492883]
[1721240702537,0.002,64544.0,64543.0,0.81492883]
[1721240703013,0.002,64544.0,64543.0,1.0264298]
[1721240703240,0.002,64544.0,64543.0,0.83346576]
[1721240703464,0.001,64544.0,64543.0,1.0234024]
[1721240703685,0.001,64544.0,64543.0,1.00484757]
[1721240703911,0.001,64544.0,64543.0,1.31471757]
[1721240704154,0.001,64544.0,64543.0,1.70708757]
[1721240704351,0.00083,64554.0,64552.0,0.154913]
[1721240704566,0.00083,64554.0,64553.0,0.37160607]
[1721240704874,0.00083,64554.0,64553.0,0.24298174]
[1721240704875,0.01288756,64554.0,64553.0,0.24298174]
[1721240705078,0.01288756,64554.0,64553.0,0.28299578]
[1721240705079,0.0128878,64554.0,64553.0,0.28299578]
[1721240705301,0.00083,64554.0,64553.0,0.28299578]
[1721240705719,0.01288802,64554.0,64553.0,0.28299578]
[1721240706025,0.01288802,64554.0,64553.0,0.28499578]
[1721240706273,0.01288802,64554.0,64553.0,0.15738174]
[1721240706443,0.01288802,64554.0,64553.0,0.28600143]
[1721240709490,0.01288802,64554.0,64553.0,0.15738174]
[1721240709688,0.01288802,64554.0,64553.0,0.13162169]
[1721240709689,0.15938802,64554.0,64553.0,0.13162169]
[1721240712415,0.15938802,64554.0,64553.0,0.003]
[1721240712737,0.15938802,64554.0,64553.0,0.13163013]
[1721240713787,0.14733,64554.0,64553.0,0.13163013]
[1721240714195,0.14733,64554.0,64553.0,0.13162944]
[1721240714735,0.15938895,64554.0,64553.0,0.13162944]
[1721240714998,0.14733,64554.0,64553.0,0.13162944]
[1721240715690,0.14733,64554.0,64553.0,0.13163124]
[1721240715895,0.15938918,64554.0,64553.0,0.003]
[1721240716070,0.15938918,64554.0,64553.0,0.13163127]
[1721240718037,0.01288918,64554.0,64553.0,0.13163127]
[1721240718915,0.01288918,64554.0,64553.0,0.13162549]
[1721240721959,0.01288918,64554.0,64553.0,0.13162969]
[1721240722162,0.01288918,64554.0,64553.0,0.003]
[1721240722363,0.01288918,64554.0,64553.0,0.13162963]
[1721240722640,0.01533134,64554.0,64553.0,0.13163078]
[1721240722786,0.15693134,64554.0,64553.0,0.13163078]
[1721240722987,0.15448918,64554.0,64553.0,0.13163078]
[1721240725339,0.15448918,64554.0,64553.0,0.13163074]
[1721240729587,0.01288918,64554.0,64553.0,0.13163074]
[1721240729785,0.00083,64554.0,64553.0,0.13163074]
[1721240730677,0.00083,64554.0,64553.0,0.28601248]
[1721240730886,0.00083,64554.0,64553.0,0.91754548]
[1721240731062,0.00083,64554.0,64553.0,0.98294548]
[1721240731278,0.00083,64554.0,64553.0,1.29276748]
[1721240731477,0.00083,64554.0,64553.0,0.85431474]
[1721240731677,0.00083,64554.0,64553.0,1.29274678]
[1721240731861,0.00083,64554.0,64553.0,1.29174678]
[1721240732077,0.00083,64554.0,64553.0,1.28974391]
[1721240732279,0.00083,64554.0,64553.0,1.30574391]
[1721240732280,0.00183,64554.0,64553.0,1.30574391]
[1721240732505,0.00183,64554.0,64553.0,0.99592191]
[1721240732709,0.00183,64554.0,64553.0,0.98792191]
[1721240732710,0.00083,64554.0,64553.0,0.98792191]
[1721240732911,0.00083,64554.0,64553.0,1.00192191]
[1721240733116,0.00183,64554.0,64553.0,1.00192215]
[1721240733514,0.00183,64554.0,64553.0,1.30374415]
[1721240733687,0.00183,64554.0,64553.0,1.31774415]
[1721240734500,0.00183,64554.0,64553.0,1.18913674]
[1721240734699,0.00183,64554.0,64553.0,1.31774274]
[1721240737412,0.00183,64554.0,64553.0,1.00792074]
[1721240737818,0.00183,64554.0,64553.0,1.31774407]
[1721240737966,0.00183,64554.0,64553.0,1.00792207]
[1721240738393,0.00183,64554.0,64553.0,1.31774407]
[1721240738984,0.00183,64554.0,64553.0,1.00792207]
[1721240739395,0.00183,64554.0,64553.0,1.31774407]
[1721240740831,0.00183,64554.0,64553.0,1.18913674]
[1721240741140,0.00183,64554.0,64553.0,1.31774407]
[1721240741282,0.00183,64554.0,64553.0,1.31774408]
[1721240745123,0.00183,64554.0,64553.0,1.36830308]
[1721240747235,0.00183,64554.0,64553.0,1.23969574]
[1721240747397,0.00183,64554.0,64553.0,1.36830307]
[1721240749709,0.00183,64554.0,64553.0,1.56120482]
[1721240749907,0.00183,64554.0,64553.0,1.36830307]
[1721240750106,0.00183,64554.0,64553.0,1.57973394]
[1721240750305,0.00183,64554.0,64553.0,1.36829926]
[1721240750729,0.00183,64554.0,64553.0,1.23969574]
[1721240750938,0.00183,64554.0,64553.0,1.36829876]
[1721240751380,0.00183,64554.0,64553.0,2.79022871]
[1721240751586,0.00183,64554.0,64553.0,3.34411106]
[1721240751785,0.00183,64554.0,64553.0,3.25167668]
[1721240751943,0.00183,64554.0,64553.0,2.7114704]
[1721240752144,0.00183,64554.0,64553.0,2.4016484]
[1721240752347,0.00183,64554.0,64553.0,2.51708579]
[1721240752551,0.00183,64554.0,64553.0,2.50308579]
[1721240752753,0.00183,64554.0,64553.0,2.51708579]
[1721240752976,0.00183,64554.0,64553.0,2.82690779]
[1721240753261,0.00083,64554.0,64553.0,4.29633137]
[1721240753473,0.00083,64554.0,64553.0,4.31025168]
[1721240753673,0.00083,64554.0,64553.0,3.6249363]
[1721240753869,0.00083,64554.0,64553.0,3.4913898]
[1721240754105,0.00083,64554.0,64553.0,4.30121072]
[1721240754302,0.00083,64554.0,64553.0,4.20887632]
[1721240754798,0.00083,64554.0,64553.0,3.9347247]
[1721240754999,0.00083,64554.0,64553.0,4.20886355]
[1721240755202,0.00083,64554.0,64553.0,4.27807182]
[1721240755380,0.00083,64554.0,64553.0,3.96824982]
[1721240755998,0.00083,64554.0,64553.0,3.93471462]
[1721240756197,0.00083,64554.0,64553.0,3.55568435]
[1721240756633,0.00083,64554.0,64553.0,3.55568322]
[1721240757465,0.00083,64554.0,64553.0,3.96824782]
[1721240757695,0.00083,64554.0,64553.0,3.89904021]
[1721240758161,0.00083,64554.0,64553.0,3.96823381]
[1721240758722,0.00083,64554.0,64553.0,3.62487682]
[1721240759129,0.00083,64554.0,64553.0,3.60181168]
[1721240759274,0.00083,64554.0,64553.0,3.55568322]